Cogmind - Beta 17.1 @@@ ROGUE MODE // 2026.09.12 @ 15:44:19 Player: st-3v1 Result: Destroyed by G-34 Mercenary with Small Laser Performance ------------- Evolutions (1) 500 Regions Visited (3) 600 Robots Destroyed (43) 215 Value Destroyed (903) 903 Prototype IDs (3) 60 Alien Tech Used (0) 0 Bonus (65) 65 TOTAL SCORE: 2343 Bonus ------- Follower Combat Kills 65 Cogmind --------- Core Integrity 0/400 Matter 293/300 Energy 276/280 System Corruption 11% Temperature Cool (8) Movement Treading (240) Ox1 Location -9/Materials Parts ------- > --- POWER (1) -------- Cooled Ion Engine > --- PROPULSION (4) --- Light Treads Light Treads > --- UTILITY (2) ------ High-capacity Storage Unit > --- WEAPON (2) ------- Mace > --- INVENTORY (20) --- Light Treads Light Treads Light Treads Signal Interpreter Melee Analysis Suite Hacking Suite Hacking Suite Hacking Suite Hacking Suite Improved Trap Extractor (0/6) Peak State ------------ > --- POWER ------------ Light Angular Momentum Engine > --- PROPULSION ------- Light Treads Light Treads Light Treads Light Treads > --- UTILITY ---------- High-capacity Storage Unit Light Armor Plating > --- WEAPON ----------- Mace > --- INVENTORY -------- Light Treads Light Treads Melee Analysis Suite Light Armor Plating Improved Trap Extractor [Rating: 14] Favorites ----------- Power Light Angular Momentum Engine Engine Light Angular Momentum Engine Propulsion Light Treads Treads Light Treads Utility Light Armor Plating Storage High-capacity Storage Unit Protection Light Armor Plating Weapon Mace Impact Weapon Mace Build | -11 -10 -10 -9 ------- Run | Yrd Mat Min Mat Slots Evolved 2 | . . . 2 Power . | . . . . Propulsion 2 | . . . 2 Utility . | . . . . Weapon . | . . . . Parts Attached 17 | 3 1 . 13 Power 2 | . . . 2 Engine 2 | . . . 2 Core . | . . . . Reactor . | . . . . Propulsion 9 | 2 . . 7 Treads 9 | 2 . . 7 Leg . | . . . . Wheel . | . . . . Hover . | . . . . Flight . | . . . . Utility 4 | 1 1 . 2 Device . | . . . . Storage 2 | 1 . . 1 Processor . | . . . . Hackware . | . . . . Protection 2 | . 1 . 1 Artifact . | . . . . Weapon 2 | . . . 2 Energy Gun . | . . . . Energy Cannon . | . . . . Ballistic Gun . | . . . . Ballistic Cannon . | . . . . Launcher . | . . . . Special Weapon . | . . . . Impact Weapon 2 | . . . 2 Slashing Weapon . | . . . . Piercing Weapon . | . . . . Special Melee Weapon . | . . . . Unidentified Prototypes 1 | . . . 1 Corrupted Parts 2 | . . . 2 System Corruption 11 | . . . 11 Parts Lost 11 | . . . 11 Power 1 | . . . 1 Propulsion 7 | . . . 7 Utility 2 | . . . 2 Weapon 1 | . . . 1 Highest Loss Streak 3 | . . . 3 To Critical Strikes . | . . . . Average Backups 5 | 1 4 5 6 Power . | . 1 1 . Propulsion 1 | . . . 2 Utility 3 | . 3 4 3 Weapon . | . . . . Tool/Special . | . . . . Unused Backups 14 | . 1 3 10 Power 2 | . 1 1 . Propulsion 3 | . . . 3 Utility 9 | . . 2 7 Weapon . | . . . . Tool/Special . | . . . . Average Slot Usage (%) 60 | . 38 42 73 Engine 4 | . . . 6 Treads 33 | . 28 28 36 Storage 6 | . . . 9 Protection 8 | . 10 14 7 Impact Weapon 7 | . . . 12 Peak Build Rating 14 | 3 3 4 14 Average Rating 7 | 1 2 3 10 On Entrance 2 | . 2 3 4 Avg Prop Armor Cover (%) 30 | 41 33 27 32 Naked Turns . | . . . . Heaviest Build 54 | . 3 3 54 Greatest Support 80 | 40 3 40 80 Greatest Overweight (x) 1 | . . . 1 Average Overweight (x) . | . . . . Largest Inventory Capacity 20 | 8 5 5 20 Average Capacity 13 | 5 5 5 18 Most Carried 10 | 3 5 5 10 Average Carried 5 | 1 4 4 6 Final Capacity 20 | 5 5 5 20 Final Carried 10 | 3 5 5 10 Class Distribution -------------------- 100% | Mutant Dominant Class ---------------- Mutant | -10/Materials Mutant | -10/Mines Mutant | -9/Materials Resources | -11 -10 -10 -9 ----------- Run | Yrd Mat Min Mat Matter Collected 373 | 201 29 . 143 Remotely . | . . . . Salvage Created 1307 | . . 1 1306 Parts 48 | . . 4 44 Haulers Intercepted 4 | . . . 4 Recyclers Shooed 2 | . . . 2 Parts Field Recycled . | . . . . Retrieved Matter . | . . . . Parts Self-Destructed . | . . . . Prevented . | . . . . Parts Restored . | . . . . Kills | -11 -10 -10 -9 ------- Run | Yrd Mat Min Mat Combat Hostiles Destroyed 26 | . . . 26 Melee 16 | . . . 16 Classes Destroyed 10 | . . 2 8 Worker 3 | . . 1 2 Builder 2 | . . . 2 Tunneler 4 | . . 2 2 Hauler 4 | . . . 4 Recycler 3 | . . . 3 Watcher 1 | . . . 1 Swarmer 7 | . . . 7 Grunt 12 | . . . 12 Brawler 1 | . . . 1 Sentry 6 | . . . 6 Best Kill Streak 9 | . . 2 9 Combat Bots Only 6 | . . . 6 Max Kills in Single Turn 1 | . . 1 1 Gunslinging . | . . . . Exploded . | . . . . Melee 1 | . . . 1 Uniques/NPCs Destroyed . | . . . . Combat | -11 -10 -10 -9 -------- Run | Yrd Mat Min Mat Hostile Shots Fired 229 | . 15 . 214 Missed 65 | . 6 . 59 Hits 164 | . 9 . 155 Melee 4 | . . . 4 Projectile 160 | . 9 . 151 Critical Strikes 3 | . . . 3 Damage Taken 2076 | . 103 . 1973 Core 433 | . 32 . 401 Absorbed by Shields . | . . . . Core Remaining (%) 93 | 100 . 87 . Volleys Fired . | . . . . Largest . | . . . . Hottest . | . . . . Shots Fired . | . . . . Gun . | . . . . Cannon . | . . . . Launcher . | . . . . Special . | . . . . Kinetic . | . . . . Thermal . | . . . . Explosive . | . . . . Electromagnetic . | . . . . Robot Hit Streak . | . . . . Robot Miss Streak . | . . . . Penetration Max . | . . . . Secondary Targets . | . . . . Shots Hit Robots 110 | . . . 110 Core Hits 23 | . . 4 19 Critical Kills 5 | . . . 5 Critical Parts Destroyed 10 | . . . 10 Critical Strikes 16 | . . . 16 Smash 16 | . . . 16 Melee Attacks 141 | . . . 141 Impact 141 | . . . 141 Slashing . | . . . . Piercing . | . . . . Sneak Attacks 15 | . . . 15 Combat Hostiles . | . . . . Follow-up Attacks 3 | . . . 3 Damage Inflicted 3568 | . . 33 3535 Guns . | . . . . Cannons . | . . . . Explosions . | . . . . Melee 3535 | . . . 3535 Ramming 33 | . . 33 . Kinetic . | . . . . Thermal . | . . . . Explosive . | . . . . Electromagnetic . | . . . . Impact 3535 | . . . 3535 Slashing . | . . . . Piercing . | . . . . Highest Corruption 11 | . . . 11 Average Corruption 10 | . . . 10 Corruption Purged . | . . . . Corruption Blocked . | . . . . Effects 14 | . . . 14 Message Errors 4 | . . . 4 Matter Fused 3 | . . . 3 Heat Flow Errors 1 | . . . 1 Energy Discharges 3 | . . . 3 Data Loss (minor) 2 | . . . 2 Data Loss (major) 1 | . . . 1 Overload Shots . | . . . . Overflow Damage 719 | . . . 719 Projectiles . | . . . . Explosions . | . . . . Melee 719 | . . . 719 Knockbacks 5 | . . . 5 Impact 4 | . . . 4 Kinetic . | . . . . Secondary 1 | . . . 1 Self-Inflicted Damage . | . . . . Shots . | . . . . Rammed 25 | . 2 23 . Targets Rammed 28 | . 2 26 . Kicked . | . . . . Crushed 3 | . . 3 . Highest Temperature 210 | . . . 210 Average Temperature 99 | . . . 99 Received Heat Transfer 765 | . 60 . 705 Siege Activations . | . . . . Martial Activations . | . . . . Shielding Activations . | . . . . Robots Disrupted . | . . . . Combat Hostiles . | . . . . Robots Corrupted 20 | . . . 20 Combat Hostiles 10 | . . . 10 Parts Fried 29 | . . . 29 Impact Corruptions 40 | . . . 40 Robots Melted . | . . . . Combat Hostiles . | . . . . Parts Melted . | . . . . Heat Transferred . | . . . . Parts Sabotaged . | . . . . Parts Stolen . | . . . . Parts Stripped . | . . . . Power Chain Reactions . | . . . . Alert | -11 -10 -10 -9 ------- Run | Yrd Mat Min Mat Maximum Alert Level 1 | . . . 1 Low Security (%) 70 | 100 100 100 51 Level 1 29 | . . . 48 Level 2 . | . . . . Level 3 . | . . . . Level 4 . | . . . . Level 5 . | . . . . High Security . | . . . . Max Security . | . . . . Peak Influence 314 | . 56 10 314 Initial . | . . . . Average 105 | . 5 . 171 Influence Increases 1095 | . 90 15 990 Destroy 0b10 Robot/C 580 | . . . 580 Destroy 0b10 Robot/NC 110 | . . 15 95 Destroy Leader 186 | . . . 186 Allied During Kill 17 | . . . 17 Successful Hack 49 | . 30 . 19 Select Force Hacks 30 | . . . 30 Disable Machine 15 | . . . 15 Destroy Structure 3 | . . . 3 Partial Spotted 15 | . . . 15 Lose Combat Pursuer 90 | . 60 . 30 Influence Decreases 794 | . 90 15 689 Time Decay 634 | . 80 15 539 Lost Part 110 | . . . 110 Lost Ally 50 | . 10 . 40 Squads Dispatched 9 | . 3 . 6 Investigation 5 | . 1 . 4 Extermination . | . . . . Reinforcement 4 | . 2 . 2 Assault . | . . . . Garrison . | . . . . Intercept . | . . . . Searches Triggered . | . . . . Construction Impeded . | . . . . Haulers Reinforced . | . . . . Active Scanning Responses . | . . . . Cargo Convoy Interrupts . | . . . . Stealth | -11 -10 -10 -9 --------- Run | Yrd Mat Min Mat Distress Signals 6 | . 3 . 3 Communications Jammed . | . . . . Distress Signals . | . . . . Times Spotted 69 | . 21 . 48 Peak Tracking Total 7 | . 7 . 6 Tactical Retreats 4 | . 2 . 2 Traps | -11 -10 -10 -9 ------- Run | Yrd Mat Min Mat Traps Triggered 2 | . 1 . 1 Indirectly . | . . . . Trap Hack Attempts . | . . . . Triggered . | . . . . Disarmed . | . . . . Reprogrammed . | . . . . Reused . | . . . . Traps Extracted . | . . . . Installed . | . . . . Triggered . | . . . . Machines | -11 -10 -10 -9 ---------- Run | Yrd Mat Min Mat Machines Disabled 1 | . . . 1 Max in Single Turn 1 | . . . 1 Machines Repaired . | . . . . Machines Dismantled . | . . . . Machines Sabotaged . | . . . . Overloaded Fab Kills . | . . . . Hacking | -11 -10 -10 -9 --------- Run | Yrd Mat Min Mat Machines Accessed 17 | . 6 1 10 Terminals 14 | . 6 . 8 Fabricators . | . . . . Repair Stations . | . . . . Recycling Units . | . . . . Scanalyzers 2 | . . . 2 Garrison Access . | . . . . Total Hacks 47 | . 18 1 28 Successful 24 | . 9 1 14 Failed 23 | . 9 . 14 Catastrophic 1 | . 1 . . Database Lockouts . | . . . . Manual 41 | . 18 . 23 Terminals 42 | . 18 . 24 Fabricators . | . . . . Repair Stations . | . . . . Recycling Units . | . . . . Scanalyzers 4 | . . . 4 Garrison Access . | . . . . Terminal Hacks 6 | . 1 1 4 Prototype ID Bank 1 | . . . 1 Open Door 1 | . . 1 . Terminal Index 3 | . 1 . 2 Locate Traps 1 | . . . 1 Fabricator Hacks . | . . . . Repair Station Hacks . | . . . . Recycling Unit Hacks . | . . . . Scanalyzer 2 | . . . 2 Insert Component 1 | . . . 1 Analyze 1 | . . . 1 Garrison Access Hacks . | . . . . Unauthorized Hacks 16 | . 8 . 8 Terminals 15 | . 8 . 7 Assimilate 1 | . 1 . . Botnet 4 | . 2 . 2 Skim 10 | . 5 . 5 Fabricators . | . . . . Repair Stations . | . . . . Recycling Units . | . . . . Scanalyzers 1 | . . . 1 Extract 1 | . . . 1 Garrison Access . | . . . . Data Cores Recovered 1 | . . . 1 Used 1 | . . . 1 Hacking Detections 11 | . 4 . 7 Full Trace Events 3 | . . . 3 Feedback Events . | . . . . Feedback Blocked . | . . . . Robot Schematics Acquired . | . . . . Robots Built . | . . . . Authchips . | . . . . Time . | . . . . Total Robot Build Rating . | . . . . Part Schematics Acquired 2 | . . . 2 Parts Built . | . . . . Authchips . | . . . . Time . | . . . . Total Part Build Rating . | . . . . Part Studies Acquired . | . . . . Parts Repaired . | . . . . Time . | . . . . Parts Recycled . | . . . . Recycled Matter . | . . . . Retrieved Matter . | . . . . Retrieved Components . | . . . . Parts Scanalyzed 1 | . . . 1 Part Schematics Acquired 1 | . . . 1 Parts Damaged . | . . . . Bothacking | -11 -10 -10 -9 ------------ Run | Yrd Mat Min Mat Used RIF Installer . | . . . . Robots Hacked . | . . . . Non-combat . | . . . . Combat . | . . . . Robot Hacks Applied . | . . . . Relay Couplers Released . | . . . . Fabnet Peak Effective % . | . . . . Robots Rewired . | . . . . Allies Hacked . | . . . . Hacks Repelled . | . . . . Allies | -11 -10 -10 -9 -------- Run | Yrd Mat Min Mat Total Allies 4 | . 1 3 . Largest Group 3 | . 1 3 3 Highest-Rated Group 40 | . 10 40 40 Highest-Rated Ally 16 | . 10 16 16 Total Orders 2 | . . . 2 STAY 1 | . . . 1 FOLLOW 1 | . . . 1 Ally Attacks 35 | . . . 35 Total Damage 301 | . . . 301 Kills 9 | . . . 9 Allies Corrupted . | . . . . Allies Melted . | . . . . Intel | -11 -10 -10 -9 ------- Run | Yrd Mat Min Mat Active Infowar (turns) . | . . . . Robot Analysis Total . | . . . . Derelict Logs Recovered 2 | . . 2 . Drone Launches . | . . . . Drone Recoveries . | . . . . Exploration | -11 -10 -10 -9 ------------- Run | Yrd Mat Min Mat Turns Passed 2716 | 31 650 385 1650 Spaces Moved 1942 | 37 476 594 835 Core 1347 | 32 476 585 254 Treads 595 | 5 . 9 581 Legs . | . . . . Wheels . | . . . . Hover . | . . . . Flight . | . . . . Fastest Speed 50 | 50 50 50 50 Average Speed 88 | 64 50 51 137 Slowest Speed 240 | 160 50 160 240 Overloaded Moves . | . . . . Propulsion Burnouts . | . . . . Robots Hopped . | . . . . Potential Cave-ins . | . . . . Cave-ins Triggered . | . . . . Exploration Rate (%) 61 | 3 81 90 71 Regions Visited 3 Branch Regions 1 Pre-discovered Areas 1 | . . 1 . Known Exits Taken 1 | . . 1 . Unknown Exits Taken 2 | 1 1 . . Scrap Searched 1 | . . 1 . Spaces Dug 2 | . . . 2 Terrain Destroyed 2 | . . . 2 Melee 2 | . . . 2 Projectile . | . . . . AOE . | . . . . Terrain Rammed . | . . . . Walls Destroyed . | . . . . Machines Disabled . | . . . . Actions | -11 -10 -10 -9 --------- Run | Yrd Mat Min Mat Total 2676 | 42 887 657 1090 Wait 523 | . 403 32 88 Move 1939 | 36 475 593 835 Hop . | . . . . Pick Up 23 | 2 4 3 14 Fast Attach 9 | 3 1 . 5 Attach 9 | . . . 9 Detach 1 | 1 . . . Swap . | . . . . Drop 6 | . 2 3 1 Fire . | . . . . Melee 138 | . . . 138 Ram . | . . . . Kick . | . . . . Crush 28 | . 2 26 . Escape Stasis . | . . . . Rewire . | . . . . Trap . | . . . . Miscellaneous . | . . . . Route ------- -11/Scrapyard -10/Materials (discovered 5 exits: *Mat x3 / *Min / *Sub) -10/Mines (discovered 2 exits: *Mat x2) -9/Materials (discovered 2 exits: [*Mat x2]) History --------- Turn | Location | Event 20 | -11/Scrapyard | Discovered new exit (range 15) 32 | -11/Scrapyard | Entered Materials 33 | -10/Materials | Met a group of wandering Federalists 210 | -10/Materials | Lost 4 allies 220 | -10/Materials | Discovered new exit (range 16) 263 | -10/Materials | Discovered new exit (range 14) 309 | -10/Materials | Build established: Mutant 334 | -10/Materials | Identified exit to Materials 392 | -10/Materials | Identified exit to Subcaves 440 | -10/Materials | Learned Storage terminal intel 476 | -10/Materials | Learned location of 1 exit from Recycling 517 | -10/Materials | Loaded intel: 22 trap records 682 | -10/Materials | Entered Mines 797 | -10/Mines | Learned Materials stockpile data 828 | -10/Mines | Assisted by bots powering up and referring to "LRC-V3" 842 | -10/Mines | YI-UF0 nonchalantly dropped a Grenade Launcher on the ground 842 | -10/Mines | Learned location of Recycling (-8) 906 | -10/Mines | Discovered exit to Materials (range 9) 914 | -10/Mines | Met a Derelict who couldn't figure out how to use a Trap Extractor 973 | -10/Mines | Discovered exit to Materials (range 8) 1067 | -10/Mines | Entered Materials 1067 | -9/Materials | Accompanied by 3 allies 1067 | -9/Materials | Evolved 2 slots: Propulsion x2 1158 | -9/Materials | Discovered new exit (range 16) 1809 | -9/Materials | Core integrity fell below 50% 1819 | -9/Materials | Lost 3 parts (1p2n) 2189 | -9/Materials | Lost 3 parts (2n1u) 2336 | -9/Materials | System corruption reached 10% 2456 | -9/Materials | Core integrity fell below 20% 2476 | -9/Materials | Discovered new exit (range 16) 2717 | -9/Materials | Destroyed by G-34 Mercenary with Small Laser Last Messages --------------- 02583_ G-34 Mercenary system terminally corrupted. 02586_ Connecting with Terminal... 02586_ Acquired 7 matter. 02596_ K-01 Serf collects debris. 02624_ System corrupted: Substantial component data lost. 02631_ Connecting with Terminal... 02631_ ALERT: Suspicious activity at Terminal M002. Dispatching Investigation squad. 02635_ G-34 Mercenary knocked back. 02637_ Lgt. Treads destroyed. 02641_ R-06 Scavenger collects Sml. Laser. 02641_ G-34 Mercenary suffers critical hit (Smash). 02641_ G-34 Mercenary destroyed. 02654_ System corrupted: Energy discharge (-103). 02700_ System corrupted: Matter fused (-7). 02715_ ME5UJPBBA|OMC1M%%YIGXS&LHYLVIY7B Map ----- +----------------------------------------------------+ | | | ?????????????????????????????????????????????? | | ?????????????????????????????????????????????? | | ?????????????????????????????????????????????? | | ?????????????????????????????????????????????? | | ?????????????????????????????????????????????? | | ?????????????????????????????????????????????? | | ?????????????????????????????????????????????? | | ?????????????????????????????????????????????? | | ?????????????????????????????????????????????? | | ?????????????????????????????????????????????? | | ?????????????????????????????????????????????? | | ?????????????????????????????????????????????? | | ?????????????????????????????????????????????? | | ?????????????????????????????????????????????? | | ???????????????????]?????????????????????????# | | ?????????????????????????????????????????????# | | ???????????? ????????????????????????????????# | | ????????????# ???????????????????????????????# | | ????????????# ?????????????????????????????# | | ????????????# ########?????????????????????# | | ????????????# ?????????????????????# | | ????????????# ??????????????????????# | | ????????????# """ ???????????????# "????# | | ????????????# "R" #???????????????# """??# | | ????????????# " " @#???????????????# """ # | | ????????????# #???????????????# + | | ????????????# #???????????????# # | | ????????????# #?????#####?????#####??# | | ????????????# g##### #????#######?# | | ??????=?????# """ # ???# ?# | | ????????????+ """ / ?# # | | ????????????# """ #????# # | | ????????????# """ ##### #????# + | | ????????????# """ #?????# ###????# # | | ????????????# #?????# #??############# | | ?############ #?????# #??# ?# | | ?# #?????# #??# T =! ?# | | ?# #?????# #??# == # | | ?# a###?????# #??# # | | ?# #???????# #????""" + | | ?# """ """ """ #???????#!#????""" # | | ?# """ """ """ #???????# #????""" # | | ?# """ """ """ #???????#%############# ## | | ?# % #???????#%= //#???????### | | ?# #########= //#?????????# | | ??##+#### !!#?????????# | | ????????# < !!#?????????# | | ????????# % #?????????# | | ????????####+############## #?????????# | +----------------------------------------------------+ Best States ------------- Heat Dissipation 28 Energy Generation 18 Energy Capacity 280 Matter Stores 300 Matter Capacity 300 Sight Range 16 Terrain Scan Density 10 Armor Coverage 150 Evasion (%) 50 Recoil Reduction 4 Item Schematics ----------------- Imp. Trap Extractor | -9/Materials | Scanalyzed Welding Torch | -9/Materials | Extracted Robot Schematics ------------------ None Fabricated ------------ Nothing Repaired ---------- Nothing Studied --------- None Alien Tech Used ----------------- None Achievements -------------- None Challenges ------------ None Game ------ Seed PulseHellfireFragment Manual? 0 Play Time 00:32:31 Cumulative 125.6 hours Start 2026.09.12 @ 15:22:49 End 2026.09.12 @ 15:44:19 Sessions 1 Manual Loads 0 Difficulty Rogue Special Mode None Game No. 58 Rogue 58 Adventurer 0 Explorer 0 Win Type - Total 6 Types 1/1/2/0/0/0/0/1/0/1 Lore% 73 Gallery% 65 Achievement% 53 Wizard Run 0 Options --------- Layout 1 ASCII 0 Keyboard 1 Movement Arrows Keybinds 0 Fullscreen 2 Font 24/Smallcaps Map View 50x35 Zoom Use 0% Tactical HUD 1 Map Filters NONE Filters NONE Steam 1 RUN: 3f3dc2bc-b922-4c19-80ac-ceaa6ddeb35a